fUST/lending_fUST_20250719
["ID","MTS","AMOUNT","RATE_DAILY","PERIOD"]
[373297691,1752930666015,-525.83049785,0.00023,3]
[373297692,1752930666025,-160.0,0.00023,3]
[373297693,1752930666037,-215.67360783,0.00023,3]
[373297694,1752930666047,-200.0,0.00023,6]
[373297695,1752930666057,-839.454303,0.00023,3]
[373297696,1752930666067,-350.0,0.00023014,2]
[373297697,1752930666077,-2162.73,0.00023046,6]
[373297698,1752930666088,-816.54762742,0.00023095,2]
[373297699,1752930666099,-161.83540059,0.00023096,2]
[373297700,1752930666113,-13357.9,0.000231,7]
[373297701,1752930666123,-2172.99,0.000231,7]
[373297702,1752930666133,-67429.5,0.000231,2]
[373297703,1752930666145,-151.0,0.00023139,2]
[373297704,1752930666156,-518.50673032,0.00023139,2]
[373297705,1752930666166,-615.0,0.00023139,2]
[373297706,1752930666177,-250.55373563,0.00023139,2]
[373297707,1752930666189,-151.0,0.00023139,2]
[373297708,1752930666200,-500.0,0.00023139,2]
[373297709,1752930666211,-687.0,0.00023139,2]
[373297710,1752930666222,-151.0,0.00023139,2]
[373297711,1752930666233,-151.0,0.00023139,2]
[373297712,1752930666254,-151.0,0.00023139,2]
[373297713,1752930666266,-151.86364359,0.00023139,2]
[373297714,1752930666276,-151.55248288,0.00023139,2]
[373297715,1752930666286,-500.0,0.00023139,2]
[373297716,1752930666299,-151.0,0.00023139,2]
[373297717,1752930666319,-4950.42392709,0.00023141,8]
[373297718,1752930666331,-2162.73,0.00023146,3]
[373297719,1752930666342,-5197.1,0.000232,7]
[373297720,1752930666352,-151.85065,0.000232,8]
[373297721,1752930666362,-151.0,0.000232,7]
[373297722,1752930666372,-151.0,0.000232,7]
[373297723,1752930666382,-151.0,0.000232,7]
[373297724,1752930666392,-150.0,0.00023207,2]
[373297725,1752930666403,-150.0,0.00023207,2]
[373297726,1752930666413,-500.0,0.00023225,2]
[373297727,1752930666424,-2162.73,0.00023246,7]
[373297728,1752930666434,-2162.73,0.00023346,4]
[373297729,1752930666443,-231.28369723,0.00023347,2]
[373297730,1752930666453,-151.85065,0.00023362,5]
[373297731,1752930666462,-151.85065,0.00023408,8]
[373297732,1752930666472,-647.0,0.00023411,2]
[373297733,1752930666482,-2156.0,0.00023411,2]
[373297734,1752930666492,-968.0,0.00023411,2]
[373297735,1752930666502,-407.0,0.00023411,2]
[373297736,1752930666513,-407.0,0.00023411,2]
[373297737,1752930666524,-151.0,0.00023413,2]
[373297738,1752930666535,-615.0,0.00023413,2]
[373297739,1752930666545,-151.0,0.00023413,2]
[373297740,1752930666555,-302.0,0.00023413,2]
[373297741,1752930666565,-687.0,0.00023413,2]
[373297742,1752930666575,-151.0,0.00023413,2]
[373297743,1752930666585,-151.0,0.00023413,2]
[373297744,1752930666596,-501.784375,0.00023413,2]
[373297745,1752930666606,-151.0,0.00023413,2]
[373297746,1752930666616,-4950.42392709,0.00023417,9]
[373297747,1752930666626,-2162.73,0.00023446,3]
[373297748,1752930666635,-198.538904,0.00023491,2]
[373297749,1752930666646,-160.0,0.00023497,5]
[373297750,1752930666655,-2162.73,0.00023546,7]
[373297751,1752930666665,-450.0,0.00023562,2]
[373297752,1752930666675,-151.85065,0.00023615,8]
[373297753,1752930666685,-2162.73,0.00023646,3]
[373297754,1752930666694,-151.85065,0.00023675,10]
[373297755,1752930666704,-151.0,0.00023687,2]
[373297756,1752930666714,-615.0,0.00023687,2]
[373297757,1752930666723,-151.0,0.00023687,2]
[373297758,1752930666733,-687.0,0.00023687,2]
[373297759,1752930666743,-151.0,0.00023687,2]
[373297760,1752930666753,-198.0,0.00023687,2]
[373297761,1752930666763,-292.0,0.00023687,2]
[373297762,1752930666772,-151.0,0.00023687,7]
[373297763,1752930666782,-278.913314,0.00023687,7]
[373297764,1752930666792,-151.0,0.00023687,7]
[373297765,1752930666803,-4950.42392709,0.00023693,9]
[373297766,1752930666814,-151.85065,0.00023718,6]
[373297767,1752930666824,-2162.73,0.00023746,6]
[373297768,1752930666835,-151.85065,0.00023823,8]
[373297769,1752930666845,-2162.73,0.00023846,2]
[373297770,1752930666856,-151.85065,0.00023886,2]
[373297771,1752930666866,-2872.15274685,0.000239,2]
[373297772,1752930666876,-2162.73,0.00023946,7]
[373297773,1752930666886,-201.27366079,0.00023961,2]
[373297774,1752930666896,-615.0,0.00023961,2]
[373297775,1752930666906,-173.44796763,0.00023961,2]
[373297776,1752930666916,-687.0,0.00023961,2]
[373297777,1752930666926,-245.0,0.00023961,2]
[373297778,1752930666936,-151.38205073,0.00023961,2]
[373297779,1752930666947,-151.0,0.00023961,2]
[373297780,1752930666957,-151.56803976,0.00023961,2]
[373297781,1752930666967,-4950.42392709,0.00023969,10]
[373297782,1752930666977,-160.0,0.00024,7]
[373297783,1752930666987,-160.0,0.00024,10]
[373297784,1752930666997,-230.94145789,0.00024,7]
[373297785,1752930667007,-230.94145789,0.00024,3]
[373297786,1752930667017,-525.83049785,0.00024,7]
[373297787,1752930667027,-525.83049785,0.00024,7]
[373297788,1752930667037,-160.0,0.00024,7]
[373297789,1752930667048,-215.67360783,0.00024,7]
[373297790,1752930667059,-839.454303,0.00024,7]
[373297791,1752930667069,-151.85065,0.00024019,3]
[373297792,1752930667079,-151.85065,0.00024024,5]
[373297793,1752930667089,-151.85065,0.0002403,8]
[373297794,1752930667100,-2162.73,0.00024046,5]
[373297795,1752930667114,-753.62936932,0.0002405,2]
[373297796,1752930667124,-151.85065,0.000241,7]
[373297797,1752930667134,-550.0,0.0002411,2]
[373297798,1752930667143,-2162.73,0.00024146,2]
[373297799,1752930667154,-13357.9,0.000242,7]
[373297800,1752930667164,-2172.99,0.000242,7]
[373297801,1752930667174,-67429.5,0.000242,2]
[373297802,1752930667185,-151.0,0.000242,7]
[373297803,1752930667196,-151.0,0.000242,7]
[373297804,1752930667206,-151.0,0.000242,7]
[373297805,1752930667216,-225.868479,0.000242,7]
[373297806,1752930667225,-225.868479,0.000242,7]
[373297807,1752930667236,-151.0,0.000242,7]
[373297808,1752930667245,-151.0,0.000242,7]
[373297809,1752930667259,-151.0,0.000242,7]
[373297810,1752930667269,-615.0,0.00024235,2]
[373297811,1752930667279,-687.0,0.00024235,2]
[373297812,1752930667289,-151.0,0.00024235,7]
[373297813,1752930667299,-300.776067,0.00024235,7]
[373297814,1752930667310,-151.0,0.00024235,7]
[373297815,1752930667321,-4950.42392709,0.00024245,10]
[373297816,1752930667331,-151.0,0.00024245,7]
[373297817,1752930667351,-2162.73,0.00024246,3]
[373297818,1752930667362,-677.682365,0.00024306,8]
[373297819,1752930667372,-500.0,0.00024321,2]
[373297820,1752930667383,-2162.73,0.00024346,4]
[373297821,1752930667393,-151.85065,0.0002435,10]
[373297822,1752930667403,-6455.44030131,0.00024362,2]
[373297823,1752930667414,-600.0,0.00024398,2]
[373297824,1752930667425,-160.0,0.00024415,6]
[373297825,1752930667436,-151.85065,0.00024423,7]
[373297826,1752930667446,-6455.44030132,0.00024445,2]
[373297827,1752930667457,-2162.73,0.00024446,7]
[373297828,1752930667467,-151.0,0.00024479,7]
[373297829,1752930667478,-151.0,0.00024479,7]
[373297830,1752930667488,-151.85065,0.00024488,6]
[373297831,1752930667498,-5197.1,0.000245,7]
[373297832,1752930667509,-615.0,0.00024509,2]
[373297833,1752930667519,-687.0,0.00024509,2]
[373297834,1752930667531,-4950.42392709,0.00024521,11]
[373297835,1752930667542,-2162.73,0.00024546,3]
[373297836,1752930667552,-200.0,0.0002457,10]
[373297837,1752930667562,-5198.71681779,0.0002458,2]
[373297838,1752930667572,-2000.0,0.000246,2]
[373297839,1752930667583,-2000.0,0.000246,2]
[373297840,1752930667594,-2162.73,0.00024646,6]
[373297841,1752930667605,-578810.87,0.00024646,8]
[373297842,1752930667615,-15888.87,0.00024646,8]
[373297843,1752930667625,-94759.17385692,0.00024646,8]
[373297844,1752930668004,-460.0,0.00017616,2]
[373297845,1752930668014,-460.0,0.0001789,2]
[373297846,1752930668023,-460.0,0.00018164,2]
[373297847,1752930668032,-460.0,0.00018438,2]
[373297848,1752930668042,-460.0,0.00018712,2]
[373297849,1752930668052,-490.43318111,0.00022548,2]
[373297850,1752930668159,460.0,0.0001652,2]
[373297851,1752930668238,460.0,0.0001652,2]
[373297852,1752930668251,-594.82,0.00016794,2]
[373297853,1752930668260,-160.0,0.00018053,2]
[373297854,1752930668270,-460.0,0.00018986,2]
[373297855,1752930668280,-460.0,0.0001926,2]
[373297856,1752930668289,-93.7188737,0.00019534,2]
[373297857,1752930668306,-366.2811263,0.00019534,2]
[373297858,1752930668315,-460.0,0.00019808,2]
[373297859,1752930668325,-460.0,0.00020082,2]
[373297860,1752930668335,-151.0,0.00022,7]
[373297861,1752930668347,-99.36681889,0.00022548,2]
[373297862,1752930668357,-2648.84,0.00022548,2]
[373297863,1752930668367,-589.80645175,0.00022822,2]
[373297864,1752930668377,-2648.94287452,0.00022822,2]
[373297865,1752930668387,-151.0,0.00023746,7]
[373297866,1752930668397,-4212.54672853,0.00024646,8]
[373297867,1752930668415,-460.0,0.00016794,2]
[373297868,1752930668425,-5279.80941455,0.00024646,8]
[373297869,1752930668435,-600.0,0.00024653,2]
[373297870,1752930668444,-467.52,0.00024657,2]
[373297871,1752930668454,-467.52,0.00024657,2]
[373297872,1752930668464,-467.52,0.00024657,2]
[373297873,1752930668473,-467.52,0.00024657,2]
[373297874,1752930668483,-467.52,0.00024657,2]
[373297875,1752930668492,-467.52,0.00024657,2]
[373297876,1752930668502,-467.52,0.00024657,2]
[373297877,1752930668511,-467.52,0.00024657,2]
[373297878,1752930668521,-467.52,0.00024657,2]
[373297879,1752930668530,-467.52,0.00024657,2]
[373297880,1752930668540,-467.52,0.00024657,2]
[373297881,1752930668549,-467.52,0.00024657,2]
[373297882,1752930668559,-467.52,0.00024657,2]
[373297883,1752930668568,-266.83742701,0.00024657,2]
[373297884,1752930668584,-200.68257299,0.00024657,2]
[373297885,1752930668593,-467.52,0.00024657,2]
[373297886,1752930668603,-467.52,0.00024657,2]
[373297887,1752930668613,-467.52,0.00024657,2]
[373297888,1752930668626,-467.52,0.00024657,2]
[373297889,1752930668636,-467.52,0.00024657,2]
[373297890,1752930668646,-467.52,0.00024657,2]
[373297891,1752930668656,-467.52,0.00024657,2]
[373297892,1752930668665,-467.52,0.00024657,2]
[373297893,1752930668676,-467.52,0.00024657,2]
[373297894,1752930668685,-467.5516907,0.00024657,2]
[373297895,1752930668696,-704.54587684,0.00024658,2]
[373297896,1752930668706,-380.0,0.00024658,2]
[373297897,1752930668716,-200.0,0.00024658,2]
[373297898,1752930668725,-153.0,0.00024658,2]
[373297899,1752930668735,-153.0,0.00024658,2]
[373297900,1752930668745,-153.0,0.00024658,2]
[373297901,1752930668755,-643.0,0.00024658,2]
[373297902,1752930668765,-151.85065,0.00024687,5]
[373297903,1752930668775,-239.84119403,0.00024716,2]
[373297904,1752930668785,-2162.73,0.00024746,2]
[373297905,1752930668795,-151.85065,0.00024747,7]
[373297906,1752930668805,-615.0,0.00024783,2]
[373297907,1752930668815,-687.0,0.00024783,2]
[373297908,1752930668825,-4950.42392709,0.00024797,11]
[373297909,1752930668834,-2000.0,0.000248,2]
[373297910,1752930668847,-2162.73,0.00024846,6]
[373297911,1752930668857,-202.13019808,0.00024861,3]
[373297912,1752930668867,-1752.0,0.00024861,3]
[373297913,1752930668877,-1752.0,0.00024861,3]
[373297914,1752930668887,-1752.0,0.00024861,3]
[373297915,1752930668897,-1752.0,0.00024861,3]
[373297916,1752930668908,-1752.0,0.00024861,3]
[373297917,1752930668917,-1752.0,0.00024861,3]
[373297918,1752930668927,-1752.0,0.00024861,3]
[373297919,1752930668937,-1784.10004566,0.00024861,3]
[373297920,1752930668948,-500.0,0.00024873,2]
[373297921,1752930668958,-500.0,0.00024873,2]
[373297922,1752930668968,-151.0,0.000249,7]
[373297923,1752930668977,-151.0,0.000249,7]
[373297924,1752930668987,-151.0,0.000249,7]
[373297925,1752930668998,-180.548408,0.000249,7]
[373297926,1752930669007,-151.0,0.000249,7]
[373297927,1752930669017,-151.0,0.000249,7]
[373297928,1752930669028,-151.0,0.000249,7]
[373297929,1752930669038,-151.0,0.000249,7]
[373297930,1752930669049,-151.0,0.000249,7]
[373297931,1752930669059,-151.0,0.000249,7]
[373297932,1752930669068,-237.36839039,0.000249,2]
[373297933,1752930669079,-151.0,0.000249,7]
[373297934,1752930669089,-151.0,0.000249,7]
[373297935,1752930669101,-151.0,0.000249,7]
[373297936,1752930669112,-257.403127,0.000249,7]
[373297937,1752930669123,-151.0,0.000249,7]
[373297938,1752930669132,-21478.88528276,0.000249,2]
[373297939,1752930669226,460.0,0.0001652,2]
[373297940,1752930669272,460.0,0.0001652,2]
[373297941,1752930669367,460.0,0.0001652,2]
[373297942,1752930669419,460.0,0.0001652,2]
[373297943,1752930669563,460.0,0.0001652,2]
[373297944,1752930669764,460.0,0.0001652,2]
[373297945,1752930669817,460.0,0.0001652,2]
[373297946,1752930669859,460.0,0.0001652,2]
[373297947,1752930669943,460.0,0.0001652,2]
[373297948,1752930670078,460.0,0.0001652,2]
[373297949,1752930670123,460.0,0.0001652,2]
[373297950,1752930677294,460.0,0.0001652,2]
[373297951,1752930677330,460.0,0.0001652,2]
[373297952,1752930678077,460.0,0.0001652,2]
[373297954,1752930680311,460.0,0.0001652,2]
[373297955,1752930684318,469.6189657,0.0001652,2]
[373297956,1752930689429,460.0,0.0001652,2]
[373297957,1752930691077,460.0,0.0001652,2]
[373297958,1752930693445,460.0,0.0001652,2]
[373297959,1752930693484,460.0,0.0001652,2]
[373297960,1752930695945,460.0,0.0001652,2]
[373297961,1752930698263,460.0,0.0001652,2]
[373297962,1752930700561,316.97761444,0.0001652,2]
[373297963,1752930700624,460.0,0.0001652,2]
[373297964,1752930701558,477.8,0.0001652,2]
[373297965,1752930703359,460.0,0.0001652,2]
[373297966,1752930705342,460.0,0.0001652,2]
[373297967,1752930705637,460.0,0.0001652,2]
[373297968,1752930711495,460.0,0.0001652,2]
[373297969,1752930712300,460.0,0.0001652,2]
[373297970,1752930713113,460.0,0.0001652,2]
[373297971,1752930714899,460.0,0.0001652,2]
[373297973,1752930722640,460.0,0.0001652,2]
[373297974,1752930727603,472.48886146,0.0001652,2]
[373297975,1752930728227,460.0,0.0001652,2]
[373297976,1752930731216,460.0,0.0001652,2]
[373297977,1752930733453,586.83,0.0001652,2]
[373297978,1752930733947,460.0,0.0001652,2]
[373297979,1752930734264,460.0,0.0001652,2]
[373297980,1752930738336,460.0,0.0001652,2]
[373297981,1752930744837,460.0,0.0001652,2]
[373297982,1752930745770,460.0,0.0001652,2]
[373297983,1752930748367,460.0,0.0001652,2]
[373297984,1752930752442,460.0,0.0001652,2]
[373297985,1752930753779,460.0,0.0001652,2]
[373297986,1752930754398,460.0,0.0001652,2]
[373297987,1752930755845,460.0,0.0001652,2]
[373297988,1752930756623,460.0,0.0001652,2]
[373297989,1752930757724,460.0,0.0001652,2]
[373297990,1752930757877,460.0,0.0001652,2]
[373297991,1752930759177,460.0,0.0001652,2]
[373297992,1752930762819,460.0,0.0001652,2]
[373297993,1752930762910,460.0,0.0001652,2]
[373297994,1752930767138,460.0,0.0001652,2]
[373297995,1752930767987,460.0,0.0001652,2]
[373297996,1752930770889,460.0,0.0001652,2]
[373297997,1752930773205,460.0,0.0001652,2]
[373297998,1752930776055,460.0,0.0001652,2]
[373297999,1752930776485,460.0,0.0001652,2]
[373298000,1752930779101,460.0,0.0001652,2]
[373298001,1752930782006,460.0,0.0001652,2]
[373298002,1752930785793,370000.0,0.00016422,2]
[373298003,1752930785841,460.0,0.0001652,2]
[373298004,1752930788366,500.0,0.0001652,2]
[373298005,1752930788542,460.0,0.0001652,2]
[373298006,1752930788661,420.0,0.0001652,2]
[373298007,1752930789679,591.67124093,0.0001652,2]
[373298008,1752930790534,460.0,0.0001652,2]
[373298009,1752930793399,460.0,0.0001652,2]
[373298010,1752930794262,460.0,0.0001652,2]
[373298011,1752930797623,460.0,0.0001652,2]
[373298012,1752930802634,460.0,0.0001652,2]
[373298013,1752930809458,460.0,0.0001652,2]
[373298014,1752930813088,460.0,0.0001652,2]
[373298015,1752930813594,460.0,0.0001652,2]
[373298016,1752930814974,460.0,0.0001652,2]
[373298017,1752930815545,460.0,0.0001652,2]
[373298018,1752930817342,460.0,0.0001652,2]
[373298019,1752930818089,460.0,0.0001652,2]
[373298020,1752930818638,460.0,0.0001652,2]
[373298021,1752930821836,460.0,0.0001652,2]
[373298022,1752930823010,460.0,0.0001652,2]
[373298023,1752930825297,460.0,0.0001652,2]
[373298024,1752930827895,460.0,0.0001652,2]
[373298025,1752930830288,460.0,0.0001652,2]
[373298026,1752930831137,460.0,0.0001652,2]
[373298027,1752930831295,460.0,0.0001652,2]
[373298028,1752930834749,460.0,0.0001652,2]
[373298029,1752930836987,460.0,0.0001652,2]
[373298030,1752930838230,460.0,0.0001652,2]
[373298031,1752930840060,460.0,0.0001652,2]
[373298033,1752930840939,460.0,0.0001652,2]
[373298034,1752930841229,460.0,0.0001652,2]
[373298035,1752930843150,503.81,0.0001652,2]
[373298036,1752930843790,460.0,0.0001652,2]
[373298037,1752930845319,460.0,0.0001652,2]
[373298038,1752930848550,460.0,0.0001652,2]
[373298040,1752930854092,460.0,0.0001652,2]
[373298043,1752930861039,460.0,0.0001652,2]
[373298044,1752930861657,460.0,0.0001652,2]
[373298045,1752930862689,460.0,0.0001652,2]
[373298047,1752930864492,554.2,0.0001652,2]
[373298053,1752930875557,460.0,0.0001652,2]
[373298054,1752930877265,460.0,0.0001652,2]
[373298056,1752930885836,460.0,0.0001652,2]
[373298057,1752930886213,460.0,0.0001652,2]
[373298058,1752930887146,460.0,0.0001652,2]
[373298059,1752930887313,460.0,0.0001652,2]
[373298060,1752930887854,460.0,0.0001652,2]
[373298062,1752930889928,460.0,0.0001652,2]
[373298064,1752930892172,460.0,0.0001652,2]
[373298065,1752930892497,460.0,0.0001652,2]
[373298066,1752930892555,460.0,0.0001652,2]
[373298068,1752930895699,460.0,0.0001652,2]
[373298069,1752930900020,460.0,0.0001652,2]
[373298070,1752930901382,460.0,0.0001652,2]
[373298071,1752930902777,460.0,0.0001652,2]
[373298072,1752930902874,460.0,0.0001652,2]
[373298073,1752930902929,460.0,0.0001652,2]
[373298076,1752930905229,460.0,0.0001652,2]
[373298080,1752930913249,460.0,0.0001652,2]
[373298081,1752930913433,460.0,0.0001652,2]
[373298082,1752930914214,460.0,0.0001652,2]
[373298085,1752930916055,460.0,0.0001652,2]
[373298086,1752930920320,460.0,0.0001652,2]
[373298087,1752930921003,464.32708438,0.0001652,2]
[373298089,1752930926188,460.0,0.0001652,2]
[373298091,1752930928956,209654.46732729,0.00016422,2]
[373298092,1752930930832,460.0,0.0001652,2]
[373298096,1752930936323,562.38,0.0001652,2]
[373298097,1752930936688,460.0,0.0001652,2]
[373298098,1752930937351,694.4,0.0001833,6]
[373298099,1752930947240,460.0,0.0001652,2]
[373298100,1752930951088,460.0,0.0001652,2]
[373298101,1752930958036,460.0,0.0001652,2]
[373298102,1752930958729,460.0,0.0001652,2]
[373298103,1752930961268,460.0,0.0001652,2]
[373298104,1752930965108,460.0,0.0001652,2]
[373298105,1752930974940,460.0,0.0001652,2]
[373298106,1752930975848,460.0,0.0001652,2]
[373298107,1752930978380,460.0,0.0001652,2]
[373298108,1752930979655,460.0,0.0001652,2]
[373298109,1752930980047,460.0,0.0001652,2]
[373298110,1752930980625,460.0,0.0001652,2]
[373298111,1752930981228,460.0,0.0001652,2]
[373298112,1752930983539,460.0,0.0001652,2]
[373298113,1752930984502,507.02,0.0001652,2]
[373298114,1752930989610,460.0,0.0001652,2]
[373298115,1752930992142,460.0,0.0001652,2]
[373298116,1752930995785,460.0,0.0001652,2]
[373298117,1752930999730,460.0,0.0001652,2]
[373298118,1752931008244,460.0,0.0001652,2]
[373298119,1752931011859,460.0,0.0001652,2]
[373298120,1752931013150,460.0,0.0001652,2]
[373298121,1752931014071,460.0,0.0001652,2]
[373298122,1752931015130,460.0,0.0001652,2]
[373298123,1752931017841,460.0,0.0001652,2]
[373298124,1752931021266,460.0,0.0001652,2]
[373298125,1752931021417,460.0,0.0001652,2]
[373298126,1752931023761,486.78,0.0001652,2]
[373298127,1752931025280,2869.999562,0.00016041,2]
[373298128,1752931026366,460.0,0.0001652,2]
[373298130,1752931035924,460.0,0.0001652,2]
[373298133,1752931039179,531.11,0.0001652,2]
[373298135,1752931043928,460.0,0.0001652,2]
[373298138,1752931054829,460.0,0.0001652,2]
[373298140,1752931061430,460.0,0.0001652,2]
[373298141,1752931064474,460.0,0.0001652,2]
[373298142,1752931068063,460.0,0.0001652,2]
[373298146,1752931081848,464.63859633,0.0001652,2]
[373298147,1752931091434,460.0,0.0001652,2]
[373298148,1752931092695,488.449632,0.00013699,2]
[373298149,1752931094026,514.41073512,0.0001652,2]
[373298151,1752931100295,460.0,0.0001652,2]
[373298152,1752931108104,426.63469732,0.0001652,2]
[373298153,1752931109251,460.0,0.0001652,2]
[373298154,1752931111213,460.0,0.0001652,2]
[373298155,1752931111391,460.0,0.0001652,2]
[373298156,1752931113018,460.0,0.0001652,2]
[373298157,1752931114177,460.0,0.0001652,2]
[373298158,1752931128926,460.0,0.0001652,2]
[373298159,1752931131171,460.0,0.0001652,2]
[373298160,1752931133669,460.0,0.0001652,2]
[373298161,1752931135420,460.0,0.0001652,2]
[373298162,1752931137373,460.0,0.0001652,2]
[373298163,1752931147882,460.0,0.0001652,2]
[373298165,1752931150044,460.0,0.0001652,2]
[373298166,1752931150232,460.0,0.0001652,2]
[373298167,1752931154828,460.0,0.0001652,2]
[373298168,1752931160578,460.0,0.0001652,2]
[373298169,1752931175441,24900.0,0.00015862,2]
[373298170,1752931180265,460.0,0.0001652,2]
[373298171,1752931186230,460.0,0.0001652,2]
[373298172,1752931190224,460.0,0.0001652,2]
[373298174,1752931207596,498.32,0.0001652,2]
[373298175,1752931209638,460.0,0.0001652,2]
[373298176,1752931219559,460.0,0.0001652,2]
[373298177,1752931222406,460.0,0.0001652,2]
[373298178,1752931227637,460.0,0.0001652,2]
[373298179,1752931241074,460.0,0.0001652,2]
[373298180,1752931250128,460.0,0.0001652,2]
[373298181,1752931262029,150.0,0.0001473,2]
[373298182,1752931271360,460.0,0.0001652,2]
[373298183,1752931310604,460.0,0.0001652,2]
[373298184,1752931314894,460.0,0.0001652,2]
[373298185,1752931321063,157.878791,0.00015989,2]
[373298186,1752931327104,150.0,0.00014728,2]
[373298187,1752931327968,460.0,0.0001652,2]
[373298189,1752931346127,460.0,0.0001652,2]
[373298190,1752931351923,537.00062229,0.0001652,2]
[373298191,1752931369687,460.0,0.0001652,2]
[373298192,1752931378893,460.0,0.0001652,2]
[373298193,1752931381927,460.0,0.0001652,2]
[373298194,1752931392183,150.0,0.00014728,2]
[373298196,1752931402820,460.0,0.0001652,2]
[373298197,1752931403837,460.0,0.0001652,2]
[373298198,1752931416589,460.0,0.0001652,2]
[373298199,1752931443123,460.0,0.0001652,2]
[373298201,1752931497178,460.0,0.0001652,2]
[373298202,1752931530493,460.0,0.0001652,2]
[373298203,1752931537880,460.0,0.0001652,2]
[373298204,1752931540448,460.0,0.0001652,2]
[373298207,1752931666841,10000.0,0.00015793,2]
[373298208,1752931693812,181.665864,0.00016288,2]
[373298209,1752931694295,264.958573,0.00016288,2]
[373298210,1752931705427,313.3147033,7e-05,120]
[373298235,1752931832186,-627.9137742,0.00016694,2]
[373298236,1752931832196,-33158.55479392,0.00016791,2]
[373298237,1752931832205,-460.0,0.00016791,2]
[373298238,1752931832215,-460.0,0.00016791,2]
[373298239,1752931832224,-460.0,0.00016791,2]
[373298240,1752931832233,-460.0,0.00016791,2]
[373298241,1752931832242,-460.0,0.00016791,2]
[373298243,1752931832251,-460.0,0.00016791,2]
[373298245,1752931832261,-460.0,0.00016791,2]
[373298246,1752931832270,-460.0,0.00016791,2]
[373298248,1752931832279,-460.0,0.00016791,2]
[373298250,1752931832290,-460.0,0.00016791,2]
[373298251,1752931832299,-460.0,0.00016791,2]
[373298253,1752931832308,-465.31352507,0.00016791,2]
[373298255,1752931832318,-460.0,0.00016791,2]
[373298257,1752931832327,-460.0,0.00016791,2]
[373298259,1752931832338,-460.0,0.00016791,2]
[373298261,1752931832348,-460.0,0.00016791,2]
[373298263,1752931832358,-460.0,0.00016791,2]
[373298265,1752931832368,-460.0,0.00016792,2]
[373298267,1752931832378,-460.0,0.00016792,2]
[373298269,1752931832387,-460.0,0.00016792,2]
[373298271,1752931832397,-460.0,0.00016792,2]
[373298273,1752931832406,-972.7,0.00016792,2]
[373298275,1752931832419,-460.0,0.00016792,2]
[373298276,1752931832430,-460.0,0.00016792,2]